bitfinex/quotes_BTCUSD_20250129
["timestamp","ask_amount","ask_price","bid_price","bid_amount"]
[1738178720907,0.41489516,101590.0,101580.0,0.00058432]
[1738178721789,0.42493336,101590.0,101580.0,0.00058432]
[1738178722047,0.42693336,101590.0,101580.0,0.00058432]
[1738178722245,0.59385637,101590.0,101580.0,0.00058432]
[1738178722390,0.59185637,101590.0,101580.0,0.00058432]
[1738178722594,0.41393336,101590.0,101580.0,0.00058432]
[1738178722818,0.41393336,101590.0,101580.0,0.00158432]
[1738178722819,0.41193336,101590.0,101580.0,0.00158432]
[1738178723221,0.42093336,101590.0,101580.0,0.00158432]
[1738178723587,0.60785637,101590.0,101580.0,0.00158432]
[1738178724234,0.71521313,101590.0,101580.0,0.00158432]
[1738178724448,0.75500076,101590.0,101580.0,0.00158432]
[1738178724667,0.74800076,101590.0,101580.0,0.00058432]
[1738178724900,0.75700076,101590.0,101580.0,0.00058432]
[1738178725118,0.668644,101590.0,101580.0,0.00158432]
[1738178725345,0.648644,101590.0,101580.0,0.00158432]
[1738178725984,0.03,101580.0,101570.0,0.1001423]
[1738178726197,0.44183217,101580.0,101570.0,0.10028723]
[1738178726409,0.43183217,101580.0,101570.0,0.10028723]
[1738178726667,0.44183217,101580.0,101570.0,0.11033019]
[1738178726880,0.44183217,101580.0,101570.0,0.10028723]
[1738178727104,0.43183217,101580.0,101570.0,0.10028723]
[1738178727322,0.56183217,101580.0,101570.0,0.10028723]
[1738178727547,0.57183217,101580.0,101570.0,0.10028723]
[1738178727767,0.41490916,101580.0,101570.0,0.10028723]
[1738178728002,0.58683217,101580.0,101570.0,0.10128723]
[1738178729087,0.4293745,101580.0,101570.0,0.10128723]
[1738178729523,0.65508514,101580.0,101570.0,0.10128723]
[1738178730005,0.8197419,101580.0,101570.0,0.10128723]
[1738178730214,0.86728103,101580.0,101570.0,0.06958705]
[1738178730453,0.86728103,101580.0,101570.0,1.4e-07]
[1738178730658,0.541682,101540.0,101520.0,0.14332054]
[1738178730871,0.541681,101540.0,101520.0,0.34032554]
[1738178731090,0.344704,101540.0,101520.0,0.14380008]
[1738178731320,0.19390686,101530.0,101520.0,0.00047954]
[1738178731991,0.19632569,101530.0,101520.0,0.17079009]
[1738178732202,0.19632569,101530.0,101520.0,0.02303609]
[1738178732416,0.19632569,101530.0,101520.0,0.17079009]
[1738178732664,0.19632569,101530.0,101520.0,3.609e-05]
[1738178732665,0.17856882,101530.0,101520.0,3.609e-05]
[1738178732881,0.62829078,101530.0,101520.0,3.609e-05]
[1738178733129,0.59673499,101530.0,101520.0,3.609e-05]
[1738178733339,0.62673499,101530.0,101520.0,3.609e-05]
[1738178733976,0.62273499,101530.0,101520.0,3.609e-05]
[1738178734202,0.297754,101520.0,101510.0,0.0406617]
[1738178734470,0.297754,101520.0,101510.0,0.05964988]
[1738178734748,0.30021503,101520.0,101510.0,0.05964988]
[1738178735467,0.30921503,101520.0,101510.0,0.04080551]
[1738178735715,0.5773812,101520.0,101510.0,0.04080551]
[1738178736700,0.41045819,101520.0,101510.0,0.04080551]
[1738178736914,0.5773812,101520.0,101510.0,0.04080551]
[1738178737126,0.5643812,101520.0,101510.0,0.04080551]
[1738178737347,0.5733812,101520.0,101510.0,0.04080551]
[1738178737554,0.5783812,101520.0,101510.0,0.04080551]
[1738178737798,0.79409184,101520.0,101510.0,0.04080551]
[1738178738038,0.46472001,101490.0,101480.0,0.0001423]
[1738178738253,0.56196317,101490.0,101480.0,0.0001423]
[1738178738440,0.56435334,101490.0,101480.0,0.0001423]
[1738178738651,0.59435334,101490.0,101480.0,0.0001423]
[1738178738867,0.64314097,101490.0,101480.0,0.0001423]
[1738178739342,0.90742074,101490.0,101480.0,0.0001423]
[1738178739986,0.90742074,101490.0,101480.0,1e-08]
[1738178740197,0.88742074,101490.0,101480.0,1e-08]
[1738178740903,0.89642074,101490.0,101480.0,1e-08]
[1738178741130,0.89642074,101490.0,101470.0,0.0001423]
[1738178741131,0.18,101480.0,101470.0,0.0001423]
[1738178741356,0.80768881,101480.0,101470.0,0.0001423]
[1738178741574,0.81012948,101480.0,101470.0,0.0001423]
[1738178741798,0.32539447,101480.0,101470.0,0.0001423]
[1738178742046,0.14847146,101480.0,101470.0,0.1479683]
[1738178742512,0.36596331,101480.0,101470.0,0.0001423]
[1738178742730,0.36596331,101480.0,101470.0,0.1479683]
[1738178742731,0.21815131,101480.0,101470.0,0.1479683]
[1738178742952,0.2080403,101480.0,101470.0,0.0231423]
[1738178743168,0.2080403,101480.0,101470.0,0.0001423]
[1738178743169,0.62220647,101480.0,101470.0,0.0001423]
[1738178743412,0.11408897,101480.0,101470.0,0.1930683]
[1738178743626,0.02340514,101480.0,101470.0,0.09738546]
[1738178743840,0.02340514,101480.0,101470.0,0.24521146]
[1738178744058,0.02525101,101480.0,101470.0,0.26821146]
[1738178744326,0.00725101,101480.0,101470.0,0.1709683]
[1738178744766,0.33598602,101480.0,101470.0,0.0231423]
[1738178745003,0.48598602,101480.0,101470.0,0.0001423]
[1738178745454,0.58322918,101480.0,101470.0,0.0001423]
[1738178745711,0.74515219,101480.0,101470.0,0.0001423]
[1738178746030,0.48998602,101480.0,101470.0,0.0001423]
[1738178746283,0.32306301,101480.0,101470.0,0.1709683]
[1738178746557,0.02525101,101480.0,101470.0,0.1709683]
[1738178746814,0.01625101,101480.0,101470.0,0.1709683]
[1738178747036,0.02532871,101480.0,101470.0,0.1709683]
[1738178747286,0.34006372,101480.0,101470.0,0.0231423]
[1738178747485,0.58730688,101480.0,101470.0,0.0001423]
[1738178747691,0.48106372,101480.0,101470.0,0.0001423]
[1738178747902,0.47206372,101480.0,101470.0,0.0001423]
[1738178748173,0.49006372,101480.0,101470.0,0.0001423]
[1738178748388,0.48106372,101480.0,101470.0,0.0001423]
[1738178748602,0.56930688,101480.0,101470.0,0.0001423]
[1738178749024,0.57530688,101480.0,101470.0,0.0001423]
[1738178749675,0.83358665,101480.0,101470.0,0.0001423]
[1738178749787,0.74522989,101480.0,101470.0,0.0001423]
[1738178750012,0.73622989,101480.0,101470.0,0.0001423]
[1738178750222,0.74622989,101480.0,101470.0,0.0001423]
[1738178750424,0.57830688,101480.0,101470.0,0.0001423]
[1738178750645,0.56930688,101480.0,101470.0,0.0001423]
[1738178751112,0.18325172,101480.0,101470.0,0.1479683]
[1738178751327,0.00732871,101480.0,101470.0,0.1479683]
[1738178751549,0.34006372,101480.0,101470.0,0.0001423]
[1738178751773,0.17314071,101480.0,101470.0,0.1479683]
[1738178752044,0.16414071,101480.0,101470.0,0.0001423]
[1738178752284,0.33106372,101480.0,101470.0,0.0001423]
[1738178752499,0.33606372,101480.0,101470.0,0.0001423]
[1738178752714,0.43330688,101480.0,101470.0,0.0001423]
[1738178752933,0.42430688,101480.0,101470.0,0.0001423]
[1738178753073,0.43330688,101480.0,101470.0,0.0001423]
[1738178753752,0.42830688,101480.0,101470.0,0.0001423]
[1738178753949,0.43430688,101480.0,101470.0,0.0001423]
[1738178754347,0.33706372,101480.0,101470.0,0.0001423]
[1738178754576,0.42530688,101480.0,101470.0,0.0001423]
[1738178754789,0.26738387,101480.0,101470.0,0.0001423]
[1738178755003,0.17014071,101480.0,101470.0,0.0001423]
[1738178755628,0.147826,101470.0,101460.0,0.14795092]
[1738178755859,0.147826,101470.0,101460.0,0.00015831]
[1738178756077,0.14973328,101470.0,101460.0,0.00015831]
[1738178757128,0.15873328,101470.0,101460.0,0.00015831]
[1738178757346,0.14973328,101470.0,101460.0,0.00015831]
[1738178757765,0.15873328,101470.0,101460.0,0.00015831]
[1738178758396,0.01690728,101470.0,101460.0,0.14799931]
[1738178759076,0.01090728,101470.0,101460.0,0.24524247]
[1738178759492,0.01090728,101470.0,101460.0,0.37114247]
[1738178759718,0.48611978,101510.0,101500.0,0.133]
[1738178759719,0.11813934,101510.0,101500.0,0.133]
[1738178759940,0.02029904,101580.0,101510.0,0.01]
[1738178760153,0.196928,101560.0,101530.0,0.16692301]
[1738178760370,0.14771,101550.0,101540.0,0.24496516]
[1738178760574,0.344636,101560.0,101540.0,0.24496116]
[1738178760790,0.14771,101550.0,101540.0,0.09724316]
[1738178761016,0.31511301,101560.0,101540.0,0.24496616]
[1738178761017,0.14819,101560.0,101540.0,0.24496616]
[1738178761259,0.006482,101560.0,101550.0,0.14771]
[1738178761471,0.006482,101560.0,101550.0,0.41286088]
[1738178761681,0.000482,101560.0,101550.0,0.60867617]
[1738178761909,1e-06,101560.0,101550.0,0.60867617]
[1738178762125,1e-06,101560.0,101550.0,0.61867617]
[1738178762548,1e-06,101560.0,101550.0,0.70995178]
[1738178763186,1e-06,101560.0,101550.0,0.70395178]
[1738178763396,1e-06,101560.0,101550.0,0.29575316]
[1738178763668,1e-06,101560.0,101550.0,0.55395178]
[1738178763876,1e-06,101560.0,101550.0,0.55495178]
[1738178764293,1e-06,101560.0,101550.0,0.71395178]
[1738178764502,0.01785034,101570.0,101560.0,0.157695]
[1738178764503,3.4e-07,101570.0,101560.0,0.157695]
[1738178764719,0.00029904,101580.0,101570.0,0.147681]
[1738178764935,6e-07,101580.0,101570.0,0.77020698]
[1738178765199,6e-07,101580.0,101570.0,0.76922278]
[1738178765414,6e-07,101580.0,101570.0,0.73622278]
[1738178765631,6e-07,101580.0,101570.0,0.32802416]
[1738178765839,6e-07,101580.0,101570.0,0.24492416]
[1738178766310,0.1476666,101580.0,101570.0,0.147681]
[1738178766552,6e-07,101580.0,101570.0,0.147681]
[1738178766797,0.0010006,101580.0,101570.0,0.154681]
[1738178767040,0.0010006,101580.0,101570.0,0.147681]
[1738178767041,6e-07,101580.0,101570.0,0.147681]
[1738178767540,0.0030006,101580.0,101570.0,0.147681]
[1738178767765,0.1506666,101580.0,101570.0,0.147681]
[1738178768012,0.0040006,101580.0,101570.0,0.147681]
[1738178768458,0.1516666,101580.0,101570.0,0.147681]
[1738178768661,0.2008896,101580.0,101560.0,0.147695]
[1738178768894,0.2008896,101580.0,101550.0,0.344633]
[1738178768895,0.344589,101570.0,101550.0,0.344633]
[1738178769091,0.344589,101570.0,101550.0,0.44187616]
[1738178769356,0.147695,101560.0,101550.0,0.09724316]
[1738178769605,0.34465,101560.0,101540.0,0.147725]
[1738178769846,0.3944676,101580.0,101560.0,0.147691]
[1738178770113,0.147682,101570.0,101550.0,0.544591]
[1738178770325,0.34459,101570.0,101550.0,0.541591]
[1738178770542,0.147682,101570.0,101560.0,0.147695]
[1738178770758,0.344591,101570.0,101550.0,0.63896546]
[1738178771011,0.009,101560.0,101550.0,0.24509546]
[1738178771781,0.156695,101560.0,101550.0,0.1478523]
[1738178772248,0.54581883,101570.0,101550.0,0.3447973]
[1738178772455,0.34889683,101570.0,101550.0,0.44203046]
[1738178772671,0.20920983,101570.0,101550.0,0.0011423]
[1738178772886,0.147695,101560.0,101550.0,0.0001423]
[1738178773301,0.149695,101560.0,101550.0,0.0001423]
[1738178773515,0.148695,101560.0,101550.0,0.0001423]
[1738178773924,0.148695,101560.0,101550.0,0.0011423]
[1738178774142,0.001,101560.0,101550.0,0.1478523]
[1738178774345,0.001,101560.0,101550.0,0.24509546]
[1738178775655,0.004,101560.0,101550.0,0.24509546]
[1738178776282,0.004,101560.0,101550.0,0.58639408]
[1738178776530,0.004,101560.0,101550.0,0.65929408]
[1738178776961,0.004,101560.0,101550.0,0.78629408]
[1738178777173,0.004,101560.0,101550.0,0.52809546]
[1738178777382,0.001,101560.0,101550.0,0.52809546]
[1738178777596,0.00029883,101570.0,101560.0,0.147695]
[1738178777829,0.00029883,101570.0,101560.0,0.24493816]
[1738178779349,0.00329883,101570.0,101560.0,0.24493816]
[1738178779554,0.00429883,101570.0,101560.0,0.24493816]
[1738178779984,0.00429883,101570.0,101560.0,0.50313678]
[1738178780197,0.00329883,101570.0,101560.0,0.50313678]
[1738178780447,0.00029883,101570.0,101560.0,0.50313678]
[1738178782795,0.00029883,101570.0,101560.0,0.24493816]
[1738178783456,0.00029883,101570.0,101550.0,0.1478513]
[1738178783457,0.147695,101560.0,101550.0,0.1478513]
[1738178783673,0.147695,101560.0,101550.0,0.0001423]
[1738178783882,0.297695,101560.0,101550.0,0.0001423]
[1738178784356,0.34648263,101560.0,101550.0,0.0001423]
[1738178784998,0.04878763,101560.0,101550.0,0.1478523]
[1738178785213,0.04878763,101560.0,101550.0,0.24608018]
[1738178785416,0.04878763,101560.0,101550.0,0.24509546]
[1738178787169,0.02880993,101570.0,101560.0,0.24493816]
[1738178787578,0.02880993,101570.0,101560.0,0.50313678]
[1738178787787,0.00029883,101570.0,101560.0,0.50313678]
[1738178788274,0.00029883,101570.0,101560.0,0.24493816]
[1738178788686,0.00929883,101570.0,101560.0,0.24593816]
[1738178788889,0.00029883,101570.0,101560.0,0.24493816]
[1738178789100,0.00029883,101570.0,101560.0,0.50313678]
[1738178789307,0.00029883,101570.0,101560.0,0.63613678]
[1738178789509,0.00929883,101570.0,101560.0,0.67613678]
[1738178789934,0.00024665,101570.0,101560.0,0.67613678]
[1738178790141,6.5e-07,101570.0,101560.0,0.90613678]
[1738178790968,0.00026008,101580.0,101570.0,0.430681]
[1738178791175,0.00026008,101580.0,101570.0,0.62792416]
[1738178791387,8e-08,101580.0,101570.0,0.99588016]
[1738178791586,8e-08,101580.0,101570.0,0.49612416]
[1738178791806,8e-08,101580.0,101570.0,0.60612416]
[1738178792220,8e-08,101580.0,101570.0,2.10612416]
[1738178792638,5.4e-07,101590.0,101580.0,0.70886462]
[1738178792848,5.4e-07,101590.0,101580.0,0.78610778]
[1738178793057,5.4e-07,101590.0,101580.0,0.90610778]
[1738178793572,5.4e-07,101590.0,101580.0,0.91659199]
[1738178793818,5.4e-07,101590.0,101580.0,0.93659199]
[1738178794064,3.7e-07,101600.0,101580.0,0.93659199]
[1738178794308,3.7e-07,101600.0,101590.0,0.26887903]
[1738178794573,3.7e-07,101600.0,101590.0,1.76789516]
[1738178794768,3.7e-07,101600.0,101590.0,2.75019243]
[1738178794977,3.7e-07,101600.0,101590.0,2.73019243]
[1738178795172,3.7e-07,101600.0,101590.0,2.75019243]
[1738178795384,3.7e-07,101600.0,101590.0,1.15019243]
[1738178795599,3.7e-07,101600.0,101590.0,1.15419243]
[1738178795809,3.7e-07,101600.0,101590.0,2.65419243]
[1738178796020,3.7e-07,101600.0,101590.0,1.02419243]
[1738178796240,3.7e-07,101600.0,101590.0,0.97066516]
[1738178796460,3.7e-07,101600.0,101590.0,0.74106516]
[1738178796687,3.7e-07,101600.0,101590.0,0.74096453]
[1738178796953,3.7e-07,101600.0,101590.0,0.74296453]
[1738178797170,3.7e-07,101600.0,101590.0,1.15116315]
[1738178797383,3.7e-07,101600.0,101590.0,1.14916315]
[1738178797556,3.7e-07,101600.0,101590.0,1.14516315]
[1738178797972,3.7e-07,101600.0,101590.0,1.14616315]
[1738178798501,3.7e-07,101600.0,101590.0,0.73796453]
[1738178799356,3.7e-07,101600.0,101590.0,0.73896453]
[1738178799559,0.01789708,101600.0,101590.0,0.73896453]
[1738178800432,0.01789708,101600.0,101590.0,0.73796453]
[1738178800651,0.01789708,101600.0,101590.0,0.99516315]
[1738178801087,0.01889708,101600.0,101590.0,0.99516315]
[1738178801313,0.00100037,101600.0,101590.0,1.01816315]
[1738178802905,0.00100037,101600.0,101590.0,0.73696453]
[1738178803801,0.00100037,101600.0,101590.0,0.99516315]
[1738178804442,0.00100037,101600.0,101590.0,0.73696453]
[1738178807520,0.00100037,101600.0,101590.0,1.16816315]
[1738178807984,0.00100037,101600.0,101590.0,1.14516315]
[1738178808423,3.7e-07,101600.0,101590.0,1.14516315]
[1738178808632,3.7e-07,101600.0,101590.0,1.14916315]
[1738178808855,3.7e-07,101600.0,101590.0,0.73696453]
[1738178809067,3.7e-07,101600.0,101590.0,0.73896453]
[1738178809285,3.7e-07,101600.0,101590.0,0.74296453]
[1738178809689,3.7e-07,101600.0,101590.0,0.74096453]
[1738178809949,3.7e-07,101600.0,101590.0,0.74196453]
[1738178810621,0.34463737,101600.0,101590.0,0.49217]
[1738178810839,0.147652,101590.0,101580.0,0.147663]
[1738178811284,0.344534,101590.0,101570.0,0.5415993]
[1738178811500,0.34454,101590.0,101570.0,0.44195346]
[1738178811714,0.541423,101590.0,101570.0,0.3447213]
[1738178811927,0.31557523,101580.0,101570.0,0.0001423]
[1738178812162,0.31557523,101580.0,101570.0,0.1478233]
[1738178813018,0.297666,101580.0,101570.0,0.1478233]
[1738178813458,0.15,101580.0,101570.0,0.1478233]
[1738178813872,0.297666,101580.0,101570.0,0.1488233]
[1738178814094,0.151,101580.0,101570.0,0.1478233]
[1738178814516,0.299666,101580.0,101570.0,0.1478233]
[1738178814761,0.152,101580.0,101570.0,0.1478233]
[1738178815172,0.299666,101580.0,101570.0,0.1478233]
[1738178815380,0.152,101580.0,101570.0,0.1478233]
[1738178816069,0.299666,101580.0,101570.0,0.1478233]
[1738178816274,0.299666,101580.0,101570.0,0.0001423]
[1738178817475,0.299666,101580.0,101570.0,0.1478233]
[1738178817671,0.299666,101580.0,101570.0,0.0001423]
[1738178819058,0.299666,101580.0,101570.0,0.1478233]
[1738178819270,0.299666,101580.0,101570.0,0.0001423]
[1738178820104,0.299666,101580.0,101570.0,0.1478233]
[1738178820523,0.002,101580.0,101570.0,0.24506646]
[1738178821558,0.001,101580.0,101570.0,0.24506646]
[1738178821771,0.19700037,101600.0,101590.0,0.147652]
[1738178821984,3.7e-07,101600.0,101590.0,0.24587941]
[1738178822200,3.7e-07,101600.0,101590.0,0.24489516]
[1738178823077,0.00500037,101600.0,101590.0,0.24489516]
[1738178824135,3.7e-07,101600.0,101590.0,0.41489516]
[1738178824349,3.7e-07,101600.0,101590.0,0.54889516]
[1738178824566,0.08515824,101630.0,101620.0,0.55587371]
[1738178824797,0.08515824,101630.0,101620.0,0.65311687]
[1738178825013,0.0262662,101630.0,101620.0,0.75071687]
[1738178825225,0.00029946,101670.0,101660.0,0.14755]
[1738178825435,0.00078247,101670.0,101660.0,0.24479316]
[1738178826095,0.00078247,101670.0,101660.0,0.65305887]
[1738178826515,0.00078247,101670.0,101660.0,0.67757796]
[1738178826720,0.00078247,101670.0,101660.0,0.75405887]
[1738178826929,0.00078247,101670.0,101660.0,0.77857796]
[1738178827381,0.00078247,101670.0,101660.0,0.39479316]
[1738178827602,0.14831847,101670.0,101660.0,0.09724316]
[1738178827816,0.29831847,101670.0,101660.0,0.09724316]
[1738178828037,0.147623,101610.0,101600.0,0.11981527]
[1738178828245,0.147637,101600.0,101590.0,0.08647329]
[1738178828460,0.297637,101600.0,101590.0,0.08647329]
[1738178828710,0.375937,101600.0,101590.0,0.08647329]
[1738178829141,0.375937,101600.0,101590.0,0.23412529]
[1738178829142,0.2283,101600.0,101590.0,0.23412529]
[1738178829351,0.15,101600.0,101590.0,0.23412529]
[1738178829570,0.04878763,101600.0,101590.0,0.23527025]
[1738178829778,0.05378763,101600.0,101590.0,0.33251341]
[1738178830668,0.05258763,101600.0,101590.0,0.33251341]
[1738178831079,0.04758763,101600.0,101590.0,0.33251341]
[1738178831356,0.05658763,101600.0,101590.0,0.33251341]
[1738178831565,0.05858763,101600.0,101590.0,0.24718242]
[1738178832401,0.04988646,101600.0,101590.0,0.24618242]
[1738178832853,0.05088646,101600.0,101590.0,0.24618242]
[1738178833271,0.19852346,101600.0,101590.0,0.00128726]
[1738178833484,0.05088646,101600.0,101590.0,0.00128726]
[1738178833691,0.24582346,101600.0,101590.0,0.00028726]
[1738178834349,0.24582346,101600.0,101590.0,0.14793926]
[1738178834567,0.09818646,101600.0,101590.0,0.14793926]
[1738178834776,0.04888646,101600.0,101590.0,0.14793926]
[1738178834980,0.04888646,101600.0,101590.0,0.2461667]
[1738178835227,0.04888646,101600.0,101590.0,0.24518242]
[1738178835432,0.04888646,101600.0,101590.0,0.24618242]
[1738178836054,0.04888646,101600.0,101590.0,0.24518242]
[1738178837132,0.04888646,101600.0,101590.0,0.39518242]
[1738178837570,0.04988646,101600.0,101590.0,0.39518242]
[1738178837848,0.04988646,101600.0,101590.0,0.24518242]
[1738178838060,0.04888646,101600.0,101590.0,0.24518242]
[1738178838278,0.19652346,101600.0,101590.0,0.24518242]
[1738178838489,0.19552346,101600.0,101590.0,0.00028726]
[1738178838699,0.04788646,101600.0,101590.0,0.14793926]
[1738178839140,0.04888646,101600.0,101590.0,0.14793926]
[1738178839961,0.04888646,101600.0,101590.0,0.24518242]
[1738178840325,0.04788646,101600.0,101590.0,0.24518242]
[1738178840604,0.04988646,101600.0,101590.0,0.24518242]
[1738178842490,0.04888646,101600.0,101590.0,0.14793926]
[1738178842697,0.19652346,101600.0,101590.0,0.14793926]
[1738178842901,0.19652346,101600.0,101590.0,0.00028726]
[1738178843334,0.24272346,101600.0,101590.0,0.00028726]
[1738178843545,0.24172346,101600.0,101590.0,0.00028726]
[1738178843970,0.24272346,101600.0,101590.0,0.00028726]
[1738178844196,0.09408646,101600.0,101590.0,0.14793926]
[1738178844407,0.24172346,101600.0,101590.0,0.00028726]
[1738178844618,0.24272346,101600.0,101590.0,0.00028726]
[1738178844825,0.39372346,101600.0,101590.0,0.00028726]
[1738178845037,0.51396662,101600.0,101590.0,0.00028726]
[1738178845892,0.51387062,101600.0,101590.0,0.00028726]
[1738178846524,0.50987173,101600.0,101590.0,0.00028726]
[1738178846974,0.50887173,101600.0,101590.0,0.00028726]
[1738178847184,0.51687173,101600.0,101590.0,0.00128726]
[1738178847432,0.52187173,101600.0,101590.0,0.00228726]
[1738178847678,0.40162857,101600.0,101590.0,0.00228726]
[1738178847916,0.39262857,101600.0,101590.0,0.00128726]
[1738178848169,0.40162857,101600.0,101590.0,0.00228726]
[1738178848627,0.39262857,101600.0,101590.0,0.00128726]
[1738178848841,0.38762857,101600.0,101590.0,0.00128726]
[1738178849055,0.40562857,101600.0,101590.0,0.00228726]
[1738178849629,0.50287173,101600.0,101590.0,0.00228726]
[1738178849843,0.52587173,101600.0,101590.0,0.00228726]
[1738178850245,0.50287173,101600.0,101590.0,0.00228726]
[1738178850672,0.52587173,101600.0,101590.0,0.00228726]
[1738178854245,0.54602723,101600.0,101590.0,0.00228726]
[1738178854885,0.52587173,101600.0,101590.0,0.00228726]
[1738178855528,0.183,101590.0,101570.0,0.0001423]
[1738178855756,0.62857487,101580.0,101570.0,0.0001423]
[1738178855964,0.297695,101560.0,101550.0,0.0001423]
[1738178856177,0.297695,101560.0,101550.0,0.00028686]
[1738178856178,0.55596071,101560.0,101550.0,0.00028686]
[1738178856385,0.65320387,101560.0,101550.0,0.00028686]
[1738178856596,0.67620387,101560.0,101550.0,0.00028686]
[1738178857230,0.67920387,101560.0,101550.0,0.00028686]
[1738178857438,0.67620387,101560.0,101550.0,0.00028686]
[1738178857652,0.65320387,101560.0,101550.0,0.00128686]
[1738178857867,0.67120387,101560.0,101550.0,0.00228686]
[1738178859157,0.315695,101560.0,101550.0,0.00228686]
[1738178859663,0.165695,101560.0,101550.0,0.14999686]
[1738178859922,0.018,101560.0,101550.0,0.14999686]
[1738178860889,0.018,101560.0,101550.0,0.24822467]
[1738178861107,0.03591637,101560.0,101550.0,0.24724002]
[1738178861533,0.03591637,101560.0,101550.0,0.14899686]
[1738178861744,0.02691637,101560.0,101550.0,0.14899686]
[1738178861970,0.03591637,101560.0,101550.0,0.14899686]
[1738178862424,0.03591637,101560.0,101550.0,0.14799686]
[1738178862425,0.17461137,101560.0,101550.0,0.14799686]
[1738178862645,0.02691637,101560.0,101550.0,0.14799686]
[1738178862859,0.03091637,101560.0,101550.0,0.14799686]
[1738178863550,0.16561137,101560.0,101550.0,0.14799686]
[1738178863579,0.16861137,101560.0,101550.0,0.00028686]
[1738178863786,0.16861137,101560.0,101550.0,0.14799686]
[1738178864032,0.19729406,101560.0,101550.0,0.14799686]
[1738178865138,0.17937769,101560.0,101550.0,0.14799686]
[1738178865566,0.17937769,101560.0,101550.0,0.00028686]
[1738178865780,0.17937769,101560.0,101550.0,0.14799686]
[1738178866014,0.03168269,101560.0,101550.0,0.14799686]
[1738178866219,0.17937769,101560.0,101550.0,0.14799686]
[1738178866870,0.03168269,101560.0,101550.0,0.24524002]
[1738178867093,0.06036492,101560.0,101550.0,0.24524002]
[1738178868712,0.003,101560.0,101550.0,0.24524002]
[1738178869677,0.150695,101560.0,101550.0,0.14799686]
[1738178870318,0.150695,101560.0,101550.0,0.00028686]
[1738178870555,0.17937769,101560.0,101550.0,0.00028686]
[1738178871869,0.41554235,101560.0,101550.0,0.00028686]
[1738178872079,0.46753816,101560.0,101550.0,0.00028686]
[1738178872221,0.66514235,101560.0,101550.0,8.6e-07]
[1738178872639,0.86624654,101560.0,101550.0,8.6e-07]
[1738178872879,0.344787,101520.0,101500.0,0.197044]
[1738178873124,0.34478,101520.0,101500.0,0.541849]
[1738178873359,0.541796,101520.0,101500.0,0.541849]
[1738178873606,0.541794,101520.0,101500.0,0.541849]
[1738178874078,0.344779,101520.0,101500.0,0.63909216]
[1738178874319,0.04660859,101510.0,101500.0,0.30027516]
[1738178875025,0.04660859,101510.0,101500.0,0.203032]
[1738178875026,0.19437659,101510.0,101500.0,0.203032]
[1738178875259,0.04660859,101510.0,101500.0,0.203032]
[1738178875478,0.04660859,101510.0,101500.0,0.30127516]
[1738178875691,0.02868221,101510.0,101500.0,0.30127516]
[1738178875898,0.02868221,101510.0,101500.0,0.29427516]
[1738178876311,0.02968221,101510.0,101500.0,0.30227516]
[1738178876939,0.001,101510.0,101500.0,0.30227516]
[1738178877297,0.001,101510.0,101500.0,0.45227516]
[1738178877532,0.001,101510.0,101500.0,0.45241736]
[1738178878242,0.0189024,101510.0,101500.0,0.45241736]
[1738178879609,0.001,101510.0,101500.0,0.45241736]
[1738178880133,0.01804704,101520.0,101510.0,0.15]
[1738178880343,4e-08,101520.0,101510.0,0.71761535]
[1738178880553,4e-08,101520.0,101510.0,0.55001116]
[1738178880775,4e-08,101520.0,101510.0,0.47781116]
[1738178880989,0.14774,101530.0,101520.0,0.197004]
[1738178881206,0.3253864,101550.0,101510.0,0.14825]
[1738178881445,0.50245321,101550.0,101540.0,0.147725]
[1738178881651,0.02868221,101550.0,101540.0,0.147725]
[1738178881861,0.02868221,101550.0,101540.0,0.24595296]
[1738178882077,0.02868221,101550.0,101540.0,0.24496816]
[1738178882496,0.17637821,101560.0,101550.0,0.14771]
[1738178882946,0.02868221,101560.0,101550.0,0.14771]
[1738178883154,0.17637721,101560.0,101550.0,0.14771]
[1738178883582,0.17637721,101560.0,101540.0,0.345678]
[1738178883583,0.009,101550.0,101540.0,0.345678]
[1738178883793,0.344657,101550.0,101530.0,0.541673]
[1738178884033,0.00014493,101560.0,101550.0,0.14771]
[1738178884933,0.00014493,101560.0,101550.0,0.24593781]
[1738178885174,0.00014493,101560.0,101550.0,0.24495316]
[1738178885881,0.01814493,101560.0,101550.0,0.24695316]
[1738178886097,0.009,101560.0,101550.0,0.24595316]
[1738178886295,0.00029862,101570.0,101560.0,0.147695]
[1738178886576,0.04379862,101570.0,101560.0,0.147695]
[1738178887208,0.07248279,101570.0,101560.0,0.24493816]
[1738178887630,0.07448279,101570.0,101560.0,0.24593816]
[1738178887845,0.38976798,101570.0,101560.0,0.001]
[1738178888127,0.38976798,101570.0,101550.0,0.001]
[1738178888128,0.147758,101520.0,101510.0,0.147764]
[1738178888357,0.196986,101530.0,101510.0,0.000482]
[1738178888608,0.31535819,101520.0,101510.0,0.000482]
[1738178888836,0.147754,101520.0,101510.0,0.000482]
[1738178889255,0.43560135,101520.0,101510.0,0.000482]
[1738178889465,0.31535819,101520.0,101510.0,0.000482]
[1738178889676,0.41260135,101520.0,101510.0,0.000482]
[1738178889891,0.75320554,101520.0,101510.0,0.000482]
[1738178890111,0.76820554,101520.0,101510.0,0.001482]
[1738178890353,0.60060135,101520.0,101510.0,0.001482]
[1738178890553,0.60960135,101520.0,101510.0,0.002482]
[1738178891181,0.79912884,101520.0,101510.0,0.002482]
[1738178891397,1.61230554,101520.0,101510.0,0.002482]
[1738178891615,1.44470135,101520.0,101510.0,0.002482]
[1738178891826,1.42470135,101520.0,101510.0,0.002482]
[1738178892050,0.53409716,101520.0,101510.0,0.002482]
[1738178892263,0.53409716,101520.0,101510.0,0.001482]
[1738178892264,0.69670135,101520.0,101510.0,0.001482]
[1738178892676,0.74920135,101520.0,101510.0,0.001482]
[1738178893154,0.58120135,101520.0,101510.0,0.000482]
[1738178893359,0.59920135,101520.0,101510.0,0.000482]
[1738178893992,0.0705,101520.0,101510.0,0.14825]
[1738178894252,0.218254,101520.0,101510.0,0.14825]
[1738178894883,0.0705,101520.0,101510.0,0.14825]
[1738178895320,0.0705,101520.0,101510.0,0.24647823]
[1738178895557,0.0705,101520.0,101510.0,0.24549316]
[1738178895778,0.0705,101520.0,101510.0,0.39549316]
[1738178896234,0.018,101520.0,101510.0,0.39549316]
[1738178896457,0.147725,101540.0,101520.0,0.393983]
[1738178896660,0.70923519,101550.0,101530.0,0.344703]
[1738178896865,0.70923519,101550.0,101530.0,0.196975]
[1738178896866,0.147725,101540.0,101530.0,0.196975]
[1738178897110,0.75825858,101560.0,101540.0,0.147725]
[1738178897312,0.47861858,101560.0,101540.0,0.147725]
[1738178897560,0.47861858,101560.0,101540.0,0.196956]
[1738178897803,0.08587958,101560.0,101550.0,0.14771]
[1738178898163,0.08587958,101560.0,101550.0,0.24495316]
[1738178898619,0.00029862,101570.0,101560.0,0.147695]